bitfinex-derivatives/quotes_SOLF0:USTF0_20250404
["timestamp","ask_amount","ask_price","bid_price","bid_amount"]
[1743789848510,0.05666015,122.71,122.68,0.06034247]
[1743789848706,0.05666015,122.71,122.69,37.18]
[1743789849294,8.20936015,122.71,122.69,37.18]
[1743789849500,0.05666015,122.71,122.68,0.06034247]
[1743789850906,8.1537,122.69,122.68,0.06034247]
[1743789851210,12.566,122.7,122.64,37.18]
[1743789851414,8.1547,122.68,122.65,8.156]
[1743789851909,8.3444,122.7,122.65,37.18]
[1743789852105,0.0609171,122.69,122.65,37.18]
[1743789852410,0.0609171,122.69,122.62,37.18]
[1743789852706,4.1431,122.7,122.64,8.1567]
[1743789852902,0.06161731,122.67,122.63,37.18]
[1743789853112,0.06161731,122.67,122.64,7.61030132]
[1743789853314,0.06161731,122.67,122.63,37.18]
[1743789853513,0.06161731,122.67,122.66,8.1557]
[1743789853701,0.06161731,122.67,122.63,37.18]
[1743789853900,0.06161731,122.67,122.64,7.61748845]
[1743789854101,0.06161731,122.67,122.65,7.61748845]
[1743789854406,0.06161731,122.67,122.63,37.18]
[1743789854910,8.1558,122.66,122.63,37.18]
[1743789855409,0.06161731,122.67,122.63,37.18]
[1743789855712,0.06161731,122.67,122.61,100.0]
[1743789855917,0.06161731,122.67,122.61,93.1336]
[1743789855918,8.1583,122.62,122.61,93.1336]
[1743789856115,8.1583,122.62,122.61,79.3958]
[1743789856304,8.1583,122.62,122.61,72.527]
[1743789859512,8.1583,122.62,122.56,8.162]
[1743789859513,26.79702286,122.63,122.56,45.342]
[1743789859714,63.91830202,122.63,122.57,7.65949817]
[1743789859914,8.16,122.6,122.58,7.65949817]
[1743789860212,8.16,122.6,122.57,8.1616]
[1743789860403,0.05255504,122.61,122.55,2.04466399]
[1743789860606,0.05255504,122.61,122.56,7.65670437]
[1743789860804,0.05255504,122.61,122.55,2.04466399]
[1743789861017,0.05255504,122.61,122.56,7.6573824]
[1743789861311,8.1608,122.59,122.55,10.20736399]
[1743789861513,8.1608,122.59,122.56,7.65575893]
[1743789861702,8.1608,122.59,122.55,10.20736399]
[1743789861899,0.05506941,122.58,122.56,7.65518142]
[1743789862215,0.05506941,122.58,122.55,2.04466399]
[1743789862414,0.05506941,122.58,122.56,7.65510887]
[1743789862605,0.05506941,122.58,122.55,10.20726399]
[1743789862804,0.05506941,122.58,122.56,7.65358138]
[1743789863000,8.21636941,122.58,122.55,10.20726399]
[1743789863204,0.05506941,122.58,122.56,15.81584652]
[1743789863404,0.05506941,122.58,122.55,2.04466399]
[1743789863713,0.05506941,122.58,122.57,8.1617]
[1743789864010,0.05506941,122.58,122.57,15.81478788]
[1743789864213,11.1924426,122.68,122.62,8.1583]
[1743789864514,11.1924426,122.68,122.63,44.83308788]
[1743789864811,11.1924426,122.68,122.64,7.65308788]
[1743789865011,33.39843861,122.69,122.65,34.3913899]
[1743789865208,33.39843861,122.69,122.66,15.80848788]
[1743789865515,0.05305225,122.68,122.67,44.83308788]
[1743789865917,0.05305225,122.68,122.67,52.98808788]
[1743789866103,33.39843861,122.72,122.67,44.83308788]
[1743789866302,33.39843861,122.72,122.68,7.65308788]
[1743789866612,33.39843861,122.72,122.69,7.65308788]
[1743789866815,8.1535,122.7,122.67,37.18]
[1743789867015,33.39843861,122.72,122.68,7.64002308]
[1743789867208,33.39843861,122.72,122.69,7.63836187]
[1743789867519,0.05967253,122.71,122.69,0.05230997]
[1743789867918,8.21257253,122.71,122.69,0.05230997]
[1743789868417,0.05967253,122.71,122.69,0.05230997]
[1743789868602,8.153,122.7,122.69,0.05230997]
[1743789870221,8.21227253,122.71,122.69,0.05230997]
[1743789870423,0.05967253,122.71,122.69,0.05230997]
[1743789871318,8.21237253,122.71,122.69,0.05230997]
[1743789871818,0.05967253,122.71,122.69,0.05230997]
[1743789872523,8.153,122.7,122.69,0.05230997]
[1743789874625,0.05967253,122.71,122.69,0.05230997]
[1743789875719,8.153,122.7,122.69,0.05230997]
[1743789876319,8.1543,122.68,122.6,26.73830202]
[1743789876625,4.2876,122.69,122.61,44.7719335]
[1743789876818,8.1555,122.67,122.62,7.6319335]
[1743789877622,0.05957329,122.66,122.63,0.05860688]
[1743789877825,0.05957329,122.66,122.64,15.7885335]
[1743789878010,0.05957329,122.66,122.64,8.1566]
[1743789878417,0.05957329,122.66,122.63,0.05860688]
[1743789878731,8.21567329,122.66,122.63,37.19860688]
[1743789878933,8.21567329,122.66,122.63,45.35580688]
[1743789880321,0.05957329,122.66,122.64,15.79285157]
[1743789880633,0.05957329,122.66,122.63,37.19860688]
[1743789880922,8.21567329,122.66,122.64,7.63473301]
[1743789881124,8.21567329,122.66,122.63,45.35600688]
[1743789881328,0.05957329,122.66,122.64,15.7923494]
[1743789881521,0.05957329,122.66,122.65,7.63233846]
[1743789881918,0.05957329,122.66,122.65,7.63385912]
[1743789882327,0.05957329,122.66,122.63,37.19860688]
[1743789882628,8.1565,122.65,122.64,7.6354875]
[1743789882940,37.19957329,122.66,122.63,0.05860688]
[1743789883120,8.157,122.64,122.63,0.05860688]
[1743789883325,41.63837329,122.66,122.63,0.05860688]
[1743789883527,4.49837329,122.66,122.63,0.05860688]
[1743789884223,8.1568,122.65,122.63,0.05860688]
[1743789884420,4.49837329,122.66,122.63,0.05860688]
[1743789884732,8.1566,122.65,122.63,0.05860688]
[1743789885032,4.49837329,122.66,122.63,0.05860688]
[1743789885328,8.1567,122.65,122.63,0.05860688]
[1743789885529,4.49837329,122.66,122.63,0.05860688]
[1743789885723,8.157,122.64,122.63,0.05860688]
[1743789887131,4.399,122.65,122.63,0.05860688]
[1743789887324,0.05957329,122.66,122.65,8.1563]
[1743789887523,4.3508,122.71,122.65,7.64352473]
[1743789887818,4.3508,122.71,122.64,53.88349639]
[1743789888023,4.3668,122.72,122.66,16.74349639]
[1743789888322,4.4316,122.74,122.67,44.78065209]
[1743789888522,0.0584734,122.7,122.68,7.69858261]
[1743789888823,0.0584734,122.7,122.69,7.63541806]
[1743789889023,0.0584734,122.7,122.69,15.79209489]
[1743789889333,12.5823,122.74,122.69,7.63839489]
[1743789889525,4.4316,122.74,122.7,7.63839489]
[1743789889830,8.1517,122.72,122.71,37.14]
[1743789893337,8.1517,122.72,122.7,0.05699715]
[1743789893631,0.05290882,122.73,122.7,0.05699715]
[1743789896337,0.05290882,122.73,122.71,8.152]
[1743789896939,0.05290882,122.73,122.72,45.2717]
[1743789897141,0.05290882,122.73,122.72,52.87807907]
[1743789897637,0.05290882,122.73,122.72,45.2717]
[1743789898640,0.05290882,122.73,122.72,37.12]
[1743789899342,0.05290882,122.73,122.71,37.12]
[1743789899532,0.05290882,122.73,122.7,0.05699715]
[1743789899733,0.05290882,122.73,122.7,37.17699715]
[1743789900936,8.1517,122.72,122.7,37.17699715]
[1743789901142,0.05290882,122.73,122.7,37.17699715]
[1743789901543,0.05290882,122.73,122.71,8.152]
[1743789901746,0.05290882,122.73,122.7,37.17699715]
[1743789902137,0.05290882,122.73,122.7,0.05699715]
[1743789902746,8.1523,122.71,122.7,0.05699715]
[1743789903150,0.05290882,122.73,122.7,0.05699715]
[1743789905851,8.152,122.72,122.7,0.05699715]
[1743789906157,0.05290882,122.73,122.7,0.05699715]
[1743789907257,0.05290882,122.73,122.71,8.152]
[1743789907458,0.05290882,122.73,122.7,0.05699715]
[1743789907662,0.05290882,122.73,122.71,7.65416084]
[1743789907957,8.20440882,122.73,122.7,8.20969715]
[1743789908159,0.05290882,122.73,122.71,7.65390184]
[1743789908362,0.05290882,122.73,122.7,0.05699715]
[1743789908547,8.1517,122.72,122.71,7.66330972]
[1743789908855,0.05290882,122.73,122.7,0.05699715]
[1743789909757,0.05290882,122.73,122.71,7.6639904]
[1743789909958,0.05290882,122.73,122.7,8.20989715]
[1743789910160,8.1517,122.72,122.71,7.66407833]
[1743789911261,8.20420882,122.73,122.71,7.66407833]
[1743789911556,0.05290882,122.73,122.72,52.91577833]
[1743789911764,33.39843861,122.84,122.72,44.76407833]
[1743789911962,46.01103861,122.84,122.73,7.66407833]
[1743789912259,16.71722798,122.81,122.74,7.66407833]
[1743789912456,16.71722798,122.79,122.72,37.1]
[1743789912650,4.2473,122.78,122.73,7.66059209]
[1743789912854,8.1497,122.75,122.74,7.71189424]
[1743789913255,8.1497,122.75,122.74,0.05130215]
[1743789913559,0.05337263,122.77,122.74,24.42851509]
[1743789913864,0.05337263,122.77,122.75,7.65998496]
[1743789914057,0.05337263,122.77,122.76,44.75998496]
[1743789914256,0.05337263,122.77,122.76,37.1]
[1743789914450,0.05337263,122.77,122.74,0.05130215]
[1743789914649,0.05337263,122.77,122.75,7.66116656]
[1743789914850,8.1493,122.76,122.74,0.05130215]
[1743789915063,0.05337263,122.77,122.75,7.66300285]
[1743789915253,0.05337263,122.77,122.74,0.05130215]
[1743789915859,8.1496,122.76,122.74,0.05130215]
[1743789916061,16.77060061,122.77,122.68,20.94252798]
[1743789916261,8.6887,122.76,122.69,44.7579536]
[1743789916461,16.71722798,122.72,122.62,379.71722798]
[1743789916654,16.71722798,122.72,122.63,44.76616994]
[1743789916854,16.71722798,122.72,122.64,7.66616994]
[1743789917058,16.71722798,122.7,122.65,7.66616994]
[1743789917363,8.74816697,122.69,122.67,0.05295279]
[1743789917567,8.74816697,122.69,122.62,37.1]
[1743789917755,8.6887,122.69,122.63,7.67290932]
[1743789917950,8.6887,122.69,122.64,7.67290932]
[1743789918155,8.1566,122.65,122.62,37.1]
[1743789918358,26.81125824,122.68,122.57,26.81125824]
[1743789918560,26.81125824,122.68,122.59,37.08]
[1743789918760,8.1586,122.62,122.61,0.05345039]
[1743789918963,8.1586,122.62,122.61,7.72913031]
[1743789919168,0.05205176,122.64,122.61,0.05345039]
[1743789919767,8.1583,122.62,122.61,0.05345039]
[1743789920566,0.05205176,122.64,122.61,0.05345039]
[1743789921069,8.158,122.63,122.61,0.05345039]
[1743789921567,8.20935176,122.64,122.61,0.05345039]
[1743789921974,0.05205176,122.64,122.61,0.05345039]
[1743789922160,8.1577,122.63,122.61,0.05345039]
[1743789922468,0.05205176,122.64,122.61,0.05345039]
[1743789922665,8.1583,122.62,122.61,0.05345039]
[1743789922973,0.05205176,122.64,122.61,0.05345039]
[1743789923265,0.05205176,122.64,122.61,37.15345039]
[1743789923472,0.05205176,122.64,122.62,7.67007307]
[1743789923772,0.05205176,122.64,122.63,8.1577]
[1743789924063,8.6887,122.69,122.63,7.66429977]
[1743789924277,8.6887,122.69,122.61,37.1]
[1743789924463,8.6887,122.69,122.62,7.66435044]
[1743789924769,8.1575,122.64,122.61,37.1]
[1743789925369,8.1582,122.63,122.61,37.1622084]
[1743789925560,0.05860804,122.64,122.61,37.1622084]
[1743789927068,8.1582,122.63,122.61,37.1622084]
[1743789927274,0.05860804,122.64,122.61,37.1622084]
[1743789927465,0.05860804,122.64,122.61,0.0622084]
[1743789927766,26.86986628,122.64,122.56,37.1]
[1743789927970,4.5135,122.63,122.57,7.66987589]
[1743789928172,8.1601,122.6,122.56,37.1]
[1743789928467,4.5135,122.63,122.57,7.66313573]
[1743789928663,8.1594,122.61,122.57,8.1613]
[1743789928970,0.05784393,122.61,122.59,0.05476871]
[1743789929174,8.1597,122.6,122.59,0.05476871]
[1743789929361,0.05784393,122.61,122.59,0.05476871]
[1743789930066,0.05784393,122.61,122.6,37.1]
[1743789932869,8.21684393,122.61,122.6,37.1]
[1743789933471,0.05784393,122.61,122.6,37.1]
[1743789934373,8.21684393,122.61,122.6,37.1]
[1743789935774,8.1597,122.6,122.59,0.05476871]
[1743789937471,0.05784393,122.61,122.56,37.1]
[1743789937972,26.86910217,122.61,122.55,2.04466399]
[1743789938163,4.1689,122.6,122.55,2.04466399]
[1743789938571,4.1689,122.6,122.56,0.05311067]
[1743789939271,4.1689,122.6,122.55,2.04466399]
[1743789939471,26.81125824,122.58,122.53,2.07372855]
[1743789939868,8.1637,122.54,122.53,2.07372855]
[1743789940276,8.1643,122.53,122.52,2.20235757]
[1743789940662,8.16,122.53,122.5,2.07605525]
[1743789940872,31.20776547,122.55,122.5,2.07605525]
[1743789941069,8.1657,122.51,122.5,2.09743597]
[1743789941575,8.1663,122.5,122.49,27.8682063]
[1743789941767,8.1663,122.5,122.49,20.9998063]
[1743789942574,8.1659,122.51,122.49,20.9998063]
[1743789942778,0.06246149,122.52,122.48,8.1676]
[1743789942968,0.06246149,122.52,122.48,37.1]
[1743789943376,0.06246149,122.52,122.49,8.1669]
[1743789943674,0.06246149,122.52,122.48,41.4984]
[1743789943869,0.06246149,122.52,122.49,8.1669]
[1743789944374,0.06246149,122.52,122.48,41.4984]
[1743789944578,0.06246149,122.52,122.48,37.1]
[1743789944779,8.1661,122.51,122.48,37.1]
[1743789945278,0.06246149,122.52,122.48,37.1]
[1743789945472,0.06246149,122.52,122.47,2.23261824]
[1743789946782,8.1677,122.48,122.47,2.23261824]
[1743789948281,45.28,122.48,122.44,2.12656682]
[1743789948473,26.81125824,122.46,122.43,2.18270325]
[1743789949076,26.8730017,122.46,122.42,2.00041527]
[1743789949280,8.1717,122.42,122.41,2.10197296]
[1743789949477,26.81125824,122.43,122.4,2.00793022]
[1743789949780,26.86795663,122.43,122.4,2.00793022]
[1743789950375,8.1723,122.41,122.4,2.00793022]
[1743789952879,8.173,122.4,122.39,1.81468314]
[1743789953981,293.94,122.42,122.38,1.83226171]
[1743789953982,8.1737,122.39,122.38,1.83226171]
[1743789954869,0.05233493,122.4,122.38,1.83226171]
[1743789955181,26.86359317,122.4,122.37,1.87806203]
[1743789955374,8.1743,122.38,122.37,1.87806203]
[1743789956088,8.175,122.37,122.36,2.00110885]
[1743789956784,26.86359317,122.4,122.36,2.00110885]
[1743789957183,8.175,122.37,122.36,2.00110885]
[1743789957585,8.175,122.37,122.36,8.85e-06]
[1743789957884,26.86359317,122.4,122.34,1.90796459]
[1743789958084,26.81125824,122.4,122.34,1.90796459]
[1743789958284,0.05417198,122.38,122.34,1.90796459]
[1743789958785,8.1763,122.35,122.34,1.90796459]
[1743789965390,0.05417198,122.38,122.34,1.90796459]
[1743789965590,0.05417198,122.38,122.35,4.4057]
[1743789965788,0.05417198,122.38,122.36,37.14]
[1743789966090,294.18,122.44,122.36,37.14]
[1743789966489,294.18,122.44,122.38,8.1739]
[1743789966994,8.1727,122.41,122.38,8.1739]
[1743789967182,294.18,122.44,122.38,0.05417198]
[1743789967384,0.0526171,122.41,122.38,0.05417198]
[1743789968094,8.1734,122.4,122.38,0.05417198]
[1743789968294,0.0526171,122.41,122.38,0.05417198]
[1743789968689,0.0526171,122.41,122.39,8.1732]
[1743789968889,0.0526171,122.41,122.4,37.12]
[1743789969383,4.3811,122.46,122.4,37.12]
[1743789969584,26.81125824,122.48,122.4,37.12]
[1743789970385,294.16,122.49,122.41,4.2131]
[1743789970586,0.06147545,122.45,122.43,0.05241505]
[1743789970783,0.06147545,122.45,122.44,45.2903]
[1743789970987,26.81125824,122.51,122.44,45.2903]
[1743789971195,26.81125824,122.51,122.44,37.12]
[1743789971396,8.1693,122.46,122.44,37.12]
[1743789971591,26.81125824,122.51,122.44,37.12]
[1743789971793,26.81125824,122.51,122.44,45.29]
[1743789972194,0.05332796,122.49,122.46,0.05202944]
[1743789972394,8.168,122.48,122.46,0.05202944]
[1743789972703,0.05332796,122.49,122.46,0.05202944]
[1743789973596,8.22062796,122.49,122.46,0.05202944]
[1743789974497,8.1677,122.48,122.46,0.05202944]
[1743789975089,8.1683,122.47,122.46,0.05202944]
[1743789976299,8.168,122.48,122.46,0.05202944]
[1743789976603,0.05332796,122.49,122.46,0.05202944]
[1743789976799,8.168,122.48,122.46,0.05202944]
[1743789977493,8.1683,122.47,122.46,0.05202944]
[1743789977895,8.1683,122.47,122.46,2.944e-05]
[1743789978894,8.1706,122.44,122.41,41.3131]
[1743789979295,31.16465824,122.48,122.41,41.3131]
[1743789979906,8.1717,122.42,122.41,41.3131]
[1743789980804,0.05716064,122.43,122.41,48.99288235]
[1743789981104,8.1695,122.46,122.43,8.1707]
[1743789981303,63.91125824,122.51,122.41,41.3131]
[1743789981502,63.91125824,122.51,122.42,7.68832445]
[1743789981705,8.5491,122.53,122.45,8.1692]
[1743789981895,8.5491,122.53,122.46,37.1]
[1743789982095,8.167,122.49,122.47,7.68196424]
[1743789982405,8.167,122.49,122.48,0.05362771]
[1743789982994,8.167,122.49,122.48,2.771e-05]
[1743789983200,8.8059,122.5,122.41,37.08]
[1743789983405,26.81125824,122.48,122.42,7.70512763]
[1743789983703,26.81125824,122.48,122.41,37.08]
[1743789983903,26.81125824,122.48,122.42,7.7029747]
[1743789984205,0.05596027,122.46,122.44,0.05345173]
[1743789986399,0.05596027,122.46,122.45,37.08]
[1743789986605,8.1647,122.53,122.45,44.79828391]
[1743789986805,330.01925824,122.54,122.46,7.71828391]
[1743789987107,303.208,122.54,122.48,8.1673]
[1743789987409,298.6961,122.54,122.48,8.1673]
[1743789987705,298.6961,122.54,122.46,4.2857]
[1743789987706,8.22605314,122.52,122.5,0.06121239]
[1743789988409,0.06075314,122.52,122.5,0.06121239]
[1743789988604,0.06075314,122.52,122.5,8.22701239]
[1743789988906,0.06075314,122.52,122.51,7.72057153]
[1743789989103,11.15422546,122.56,122.54,8.1636]
[1743789989298,11.15422546,122.56,122.54,45.2436]
[1743789989502,11.15422546,122.56,122.54,37.08]
[1743789989702,11.15422546,122.56,122.55,8.163]
[1743789990104,4.28522546,122.56,122.55,8.163]
[1743789990502,33.52502484,122.57,122.55,7.70602333]
[1743789990807,33.52502484,122.57,122.54,37.14178977]
[1743789991009,33.52502484,122.57,122.56,8.1623]
[1743789991514,89.23380373,122.58,122.54,37.14178977]
[1743789991806,133.59375447,122.59,122.58,8.161]
[1743789992011,8.1564,122.65,122.58,44.74270375]
[1743789992213,8.1564,122.65,122.58,37.06]
[1743789992511,8.1572,122.64,122.6,8.1596]
[1743789992713,0.05181436,122.63,122.6,8.2162198]
[1743789993014,0.05181436,122.63,122.61,8.1585]
[1743789993215,0.05181436,122.63,122.6,0.0566198]
[1743789996519,320.68436356,122.74,122.62,26.84436356]
[1743789996712,8.152,122.72,122.66,8.1552]
[1743789996913,8.152,122.72,122.62,26.84436356]
[1743789996914,8.152,122.72,122.67,37.04]
[1743789997210,8.765,122.73,122.67,37.04]
[1743789997613,0.05359525,122.71,122.69,0.05822734]
[1743789997808,0.05359525,122.71,122.7,8.153]
[1743789998013,0.05359525,122.71,122.69,0.05822734]
[1743789998716,8.153,122.7,122.69,0.05822734]
[1743789998913,0.05359525,122.71,122.66,20.38]
[1743789999115,8.1541,122.69,122.66,20.38]
[1743789999314,0.05359525,122.71,122.66,20.38]
[1743790000017,0.05359525,122.71,122.67,0.0523964]
[1743790000407,37.05359525,122.71,122.67,0.0523964]
[1743790000613,8.1543,122.68,122.67,0.0523964]
[1743790000917,37.05359525,122.71,122.67,0.0523964]
[1743790001119,8.1534,122.7,122.67,0.0523964]
[1743790001610,37.05359525,122.71,122.67,0.0523964]
[1743790002422,8.1537,122.69,122.67,0.0523964]
[1743790002919,8.1543,122.68,122.67,0.0523964]
[1743790003122,37.05359525,122.71,122.67,0.0523964]
[1743790003317,0.05359525,122.71,122.67,0.0523964]
[1743790003524,0.05359525,122.71,122.67,8.2069964]
[1743790003825,0.05359525,122.71,122.67,45.2069964]
[1743790004017,0.05359525,122.71,122.68,8.1543]
[1743790004213,0.05359525,122.71,122.67,37.0523964]
[1743790005116,0.05359525,122.71,122.7,8.153]
[1743790005316,0.05359525,122.71,122.67,37.0523964]
[1743790006822,0.05359525,122.71,122.7,8.153]
[1743790007425,0.05359525,122.71,122.67,37.0523964]
[1743790008111,0.05359525,122.71,122.67,0.0523964]
[1743790008317,0.05359525,122.71,122.68,36.98]
[1743790008517,8.20619525,122.71,122.68,45.1342]
[1743790008723,0.05359525,122.71,122.68,36.98]
[1743790009323,0.05359525,122.71,122.67,0.0523964]
[1743790009515,8.1543,122.68,122.67,0.0523964]
[1743790011127,0.05359525,122.71,122.67,0.0523964]
[1743790011623,0.05359525,122.71,122.68,8.154]
[1743790012027,8.20629525,122.71,122.69,36.96]
[1743790012527,8.153,122.7,122.69,36.96]
[1743790013830,8.1543,122.68,122.67,0.0523964]
[1743790016132,8.154,122.69,122.67,0.0523964]
[1743790016424,0.05359525,122.71,122.67,0.0523964]
[1743790016631,8.153,122.7,122.67,0.0523964]
[1743790017127,8.153,122.7,122.67,8.2070964]
[1743790017425,8.1538,122.69,122.67,8.2070964]
[1743790017626,8.1538,122.69,122.67,0.0523964]
[1743790017930,0.05359525,122.71,122.67,0.0523964]
[1743790018633,8.20599525,122.71,122.69,8.1537]
[1743790018929,8.20599525,122.71,122.69,36.96]
[1743790019327,8.153,122.7,122.69,36.96]
[1743790019525,0.05359525,122.71,122.69,36.96]
[1743790020031,8.20629525,122.71,122.69,36.96]
[1743790020235,0.05359525,122.71,122.7,8.153]
[1743790020432,0.05359525,122.71,122.69,36.96]
[1743790020629,320.58436356,122.79,122.69,36.96]
[1743790020827,12.8832,122.78,122.69,36.96]
[1743790021033,8.1513,122.73,122.69,36.96]
[1743790021335,12.8832,122.78,122.7,8.1527]
[1743790021529,36.94,122.77,122.69,36.96]
[1743790021732,0.05187203,122.75,122.73,0.05230549]
[1743790022230,8.1509,122.74,122.73,0.05230549]
[1743790022931,0.05187203,122.75,122.69,36.96]
[1743790023527,8.1514,122.73,122.69,36.96]
[1743790023927,36.94,122.77,122.69,36.96]
[1743790024139,8.1527,122.71,122.7,0.0599915]
[1743790024533,0.05536535,122.72,122.7,0.0599915]
[1743790025736,0.05536535,122.72,122.71,8.1523]
[1743790025933,0.05536535,122.72,122.7,0.0599915]
[1743790026332,0.05536535,122.72,122.71,8.1523]
[1743790027135,0.05536535,122.72,122.7,8.2126915]
[1743790027432,0.05536535,122.72,122.7,0.0599915]
[1743790027748,0.05536535,122.72,122.71,8.1523]
[1743790027938,0.05536535,122.72,122.7,0.0599915]
[1743790028341,0.05536535,122.72,122.71,8.1523]
[1743790028539,0.05536535,122.72,122.7,0.0599915]
[1743790028839,8.20726535,122.72,122.7,8.2126915]
[1743790029540,0.05536535,122.72,122.7,8.2126915]
[1743790030441,0.05536535,122.72,122.71,8.1523]
[1743790031040,0.05536535,122.72,122.7,0.0599915]
[1743790031226,0.05536535,122.72,122.71,7.6664967]
[1743790031943,8.20706535,122.72,122.71,7.6664967]
[1743790032540,0.05536535,122.72,122.71,7.6664967]
[1743790032743,0.05536535,122.72,122.71,15.8187967]
[1743790032949,0.05536535,122.72,122.71,7.6664967]
[1743790033245,0.05536535,122.72,122.71,0.8069967]
[1743790033747,8.20706535,122.72,122.71,0.8069967]
[1743790034946,8.1523,122.71,122.7,0.0599915]
[1743790035149,0.05536535,122.72,122.68,135.81]
[1743790035444,0.05536535,122.72,122.68,98.89]
[1743790036544,0.05536535,122.72,122.69,0.05550936]
[1743790036845,0.05536535,122.72,122.7,36.9]
[1743790037240,8.20736535,122.72,122.7,36.9]
[1743790037644,0.05536535,122.72,122.7,36.9]
[1743790037946,0.05536535,122.72,122.7,45.0527]
[1743790038144,0.05536535,122.72,122.7,36.9]
[1743790038747,0.05536535,122.72,122.71,8.1523]
[1743790039349,0.05536535,122.72,122.69,0.05550936]
[1743790039542,0.05536535,122.72,122.68,57.7281]
[1743790039743,0.05536535,122.72,122.68,38.1503]
[1743790040048,36.9,122.71,122.68,22.39]
[1743790040350,8.1537,122.69,122.68,22.39]
[1743790041143,8.16,122.69,122.61,4.1696]
[1743790041452,26.84436356,122.67,122.61,36.9]
[1743790041749,63.74436356,122.67,122.6,0.8502]
[1743790041950,8.159,122.61,122.6,0.8502]
[1743790042851,0.05585714,122.62,122.6,0.8502]
[1743790043350,8.159,122.61,122.6,0.8502]
[1743790043856,0.05585714,122.62,122.59,0.05447052]
[1743790044736,8.1597,122.6,122.59,0.05447052]
[1743790045140,0.05585714,122.62,122.59,0.05447052]
[1743790045341,8.1592,122.61,122.59,0.05447052]
[1743790045646,0.05585714,122.62,122.59,0.05447052]
[1743790046852,8.21455714,122.62,122.59,0.05447052]
[1743790047345,0.05585714,122.62,122.59,0.05447052]
[1743790048552,8.1594,122.61,122.59,0.05447052]
[1743790049054,0.05585714,122.62,122.59,0.05447052]
[1743790049557,8.1597,122.6,122.59,0.05447052]
[1743790049745,0.05585714,122.62,122.59,0.05447052]
[1743790049944,8.1593,122.61,122.59,0.05447052]
[1743790050248,0.05585714,122.62,122.59,8.21467052]
[1743790050451,0.05585714,122.62,122.59,0.05447052]
[1743790051243,8.1595,122.61,122.59,0.05447052]
[1743790051850,0.05585714,122.62,122.59,0.05447052]
[1743790053752,8.1595,122.61,122.59,0.05447052]
[1743790054357,8.21445714,122.62,122.59,0.05447052]
[1743790054558,0.05585714,122.62,122.59,0.05447052]
[1743790055057,8.21435714,122.62,122.59,8.21457052]
[1743790055262,0.05585714,122.62,122.59,0.05447052]
[1743790055773,0.05585714,122.62,122.59,4.47257052]
[1743790056453,0.05585714,122.62,122.59,0.05447052]
[1743790056654,8.1593,122.61,122.59,0.05447052]
[1743790057565,8.1593,122.61,122.59,8.21477052]
[1743790058049,0.05585714,122.62,122.59,0.05447052]
[1743790058561,8.1597,122.6,122.59,0.05447052]
[1743790060766,8.1594,122.61,122.59,0.05447052]
[1743790061160,0.05585714,122.62,122.59,0.05447052]
[1743790061364,8.1597,122.6,122.59,0.05447052]
[1743790062064,8.1594,122.61,122.59,0.05447052]
[1743790062362,0.05585714,122.62,122.59,0.05447052]
[1743790063965,8.1597,122.6,122.59,0.05447052]
[1743790064963,0.05585714,122.62,122.59,0.05447052]
[1743790066863,8.1597,122.6,122.59,0.05447052]
[1743790071857,8.1597,122.6,122.59,7.052e-05]
[1743790072059,8.1637,122.54,122.52,17.0068]
[1743790072264,16.75984604,122.59,122.52,17.0068]
[1743790072466,16.75984604,122.59,122.52,49.4317]
[1743790072774,8.1635,122.55,122.52,49.4317]
[1743790073266,8.21694286,122.55,122.52,49.48775045]
[1743790073571,8.21694286,122.55,122.52,41.32285045]
[1743790073866,8.1638,122.54,122.52,41.32285045]
[1743790074067,0.05344286,122.55,122.52,36.93605045]
[1743790074468,8.1637,122.54,122.52,36.93605045]
[1743790074972,0.05344286,122.55,122.52,36.93605045]
[1743790075676,16.8132889,122.55,122.47,62.24]
[1743790075871,16.8132889,122.55,122.47,72.98]
[1743790076172,16.75984604,122.55,122.47,72.98]
[1743790076364,36.88,122.54,122.47,72.98]
[1743790076567,36.88,122.54,122.47,81.148]
[1743790076770,0.05547847,122.52,122.47,72.98]
[1743790077169,8.1675,122.49,122.47,72.98]
[1743790077462,8.1675,122.49,122.47,36.1]
[1743790077663,8.22997738,122.49,122.47,36.1]
[1743790078170,8.1677,122.48,122.47,25.36]
[1743790079376,8.1677,122.48,122.42,29.21354604]
[1743790079583,8.1677,122.48,122.45,8.1692]